bitfinex-derivatives/quotes_ETHF0:USTF0_20250503
["timestamp","ask_amount","ask_price","bid_price","bid_amount"]
[1746254465290,8.4858897,1829.3,1829.2,30.21417655]
[1746254465489,8.05824,1829.3,1829.2,30.21417655]
[1746254465889,8.48588426,1829.3,1829.2,30.21417655]
[1746254466390,8.48588426,1829.3,1829.2,29.12107655]
[1746254466892,8.48599973,1829.3,1829.2,29.12107655]
[1746254467492,4.72859973,1829.3,1829.2,30.21417655]
[1746254467790,4.72859973,1829.3,1829.2,31.85807655]
[1746254468190,5.03869254,1829.3,1829.2,31.85807655]
[1746254468789,5.03906128,1829.3,1829.2,31.85807655]
[1746254468992,5.03906128,1829.3,1829.2,30.76497655]
[1746254470091,5.03906128,1829.3,1829.2,31.85807655]
[1746254470491,5.03905681,1829.3,1829.2,31.85807655]
[1746254472393,4.72896828,1829.3,1829.2,31.85807655]
[1746254473094,1.52116828,1829.3,1829.2,31.85807655]
[1746254473293,5.03908128,1829.3,1829.2,31.85807655]
[1746254474092,5.03913152,1829.3,1829.2,31.85807655]
[1746254475893,5.03917205,1829.3,1829.2,31.85807655]
[1746254477697,5.03924713,1829.3,1829.2,31.85807655]
[1746254479396,4.72900365,1829.3,1829.2,31.85807655]
[1746254479597,5.03936531,1829.3,1829.2,31.85807655]
[1746254481192,4.72900365,1829.3,1829.2,31.85807655]
[1746254481399,5.03974885,1829.3,1829.2,31.85807655]
[1746254482996,5.03975593,1829.3,1829.2,31.85807655]
[1746254484100,1.83195593,1829.3,1829.2,31.85807655]
[1746254484299,3.42065593,1829.3,1829.2,31.85807655]
[1746254484500,6.62845593,1829.3,1829.2,9.3653]
[1746254485004,6.62846318,1829.3,1829.2,9.3653]
[1746254485302,3.42066318,1829.3,1829.2,9.3653]
[1746254485599,6.62846318,1829.3,1829.2,23.03598212]
[1746254485801,6.62846318,1829.3,1829.2,30.21417655]
[1746254486600,6.62847189,1829.3,1829.2,30.21417655]
[1746254487705,10.25973709,1829.3,1829.2,30.21417655]
[1746254488401,10.25974798,1829.3,1829.2,30.21417655]
[1746254489205,10.25974798,1829.3,1829.2,31.96317655]
[1746254490304,10.25974798,1829.3,1829.2,31.96317655]
[1746254491403,7.05194798,1829.3,1829.2,31.96317655]
[1746254491605,10.25974798,1829.3,1829.2,31.96317655]
[1746254493703,10.25972935,1829.3,1829.2,31.96317655]
[1746254495403,4.37018935,1829.3,1829.2,31.96317655]
[1746254495600,3.6312652,1829.3,1829.2,31.96317655]
[1746254499905,3.6312652,1829.3,1829.2,24.78498212]
[1746254500102,3.6312652,1829.3,1829.2,31.96317655]
[1746254501406,0.00500456,1829.4,1829.3,1.09304]
[1746254501608,0.00500456,1829.4,1829.3,23.68791655]
[1746254502110,0.00500456,1829.4,1829.3,27.40591655]
[1746254507311,2.74548456,1829.4,1829.3,25.65991655]
[1746254507505,4.01729336,1829.4,1829.3,25.65991655]
[1746254507811,4.01729336,1829.4,1829.3,3.718]
[1746254508003,4.32721231,1829.4,1829.3,3.718]
[1746254508204,4.32721231,1829.4,1829.3,1.09304]
[1746254508510,3.89931919,1829.4,1829.3,1.09304]
[1746254510811,7.53058439,1829.4,1829.3,1.09304]
[1746254511611,7.53059215,1829.4,1829.3,1.09304]
[1746254512513,10.73839215,1829.4,1829.3,14.76372212]
[1746254512810,7.53059215,1829.4,1829.3,14.76372212]
[1746254513111,10.73839215,1829.4,1829.3,14.76372212]
[1746254513500,10.73841254,1829.4,1829.3,14.76372212]
[1746254513705,7.53061254,1829.4,1829.3,21.94191655]
[1746254513906,10.73841254,1829.4,1829.3,21.94191655]
[1746254515317,10.73842512,1829.4,1829.3,21.94191655]
[1746254517109,10.7385213,1829.4,1829.3,21.94191655]
[1746254518816,10.73853901,1829.4,1829.3,21.94191655]
[1746254519120,10.73853901,1829.4,1829.3,25.42791655]
[1746254519510,10.42844976,1829.4,1829.3,25.42791655]
[1746254520716,9.58454976,1829.4,1829.3,25.42791655]
[1746254520916,9.58454976,1829.4,1829.3,27.17011655]
[1746254523720,5.95328456,1829.4,1829.3,27.17011655]
[1746254524123,6.75548456,1829.4,1829.3,27.17011655]
[1746254524619,6.75048,1829.4,1829.3,27.17011655]
[1746254525122,5.94828,1829.4,1829.3,27.17011655]
[1746254527022,5.95328456,1829.4,1829.3,27.17011655]
[1746254536123,0.00500456,1829.4,1829.3,30.37791655]
[1746254536326,0.00500456,1829.4,1829.3,27.17011655]
[1746254536517,0.00500456,1829.4,1829.3,30.37791655]
[1746254537125,0.00500456,1829.4,1829.3,34.09591655]
[1746254537825,0.00500456,1829.4,1829.3,30.88811655]
[1746254538026,0.00500456,1829.4,1829.3,34.09591655]
[1746254544432,0.00500456,1829.4,1829.3,39.09591655]
[1746254546832,0.00500456,1829.4,1829.3,34.09591655]
[1746254547937,0.00500456,1829.4,1829.3,41.33179772]
[1746254550540,0.00500456,1829.4,1829.3,38.12399772]
[1746254550735,0.00500456,1829.4,1829.3,41.33179772]
[1746254551039,0.00500456,1829.4,1829.3,34.09591655]
[1746254551237,0.00500456,1829.4,1829.3,34.09291655]
[1746254566448,0.00500456,1829.4,1829.3,32.35071655]
[1746254566647,0.80310456,1829.4,1829.3,32.35071655]
[1746254569552,0.80310456,1829.4,1829.3,25.17252212]
[1746254569750,0.80310456,1829.4,1829.3,32.35071655]
[1746254569953,0.80310456,1829.4,1829.3,33.95931655]
[1746254570340,0.80310456,1829.4,1829.3,20.28863443]
[1746254570544,0.80310456,1829.4,1829.3,33.95931655]
[1746254571651,4.56e-06,1829.4,1829.3,33.95931655]
[1746254572848,0.8684,1829.6,1829.5,1.09292]
[1746254573049,0.8684,1829.6,1829.5,28.86759655]
[1746254573250,2.598,1829.6,1829.5,28.86759655]
[1746254574145,1.7296,1829.6,1829.5,28.86759655]
[1746254574348,1.7296,1829.6,1829.5,31.32019655]
[1746254576955,1.7296,1829.6,1829.5,29.70009655]
[1746254577160,2.5634,1829.6,1829.5,28.86759655]
[1746254578162,2.5634,1829.6,1829.5,25.65979655]
[1746254578361,2.5634,1829.6,1829.5,28.86759655]
[1746254578755,1.7296,1829.6,1829.5,30.51259655]
[1746254581064,1.7296,1829.6,1829.5,37.74847772]
[1746254583566,0.8494,1829.8,1829.7,1.0928]
[1746254583756,2.4415,1829.8,1829.7,18.24348212]
[1746254583959,2.4415,1829.8,1829.7,4.5728]
[1746254584163,2.4415,1829.8,1829.7,8.2908]
[1746254584664,7.4415,1829.8,1829.7,8.2908]
[1746254585061,2.4415,1829.8,1829.7,8.2908]
[1746254592978,6.74204,1829.8,1829.7,7.198]
[1746254593171,6.74204,1829.8,1829.7,7.195]
[1746254593371,6.74204,1829.8,1829.7,8.2878]
[1746254594175,6.74204,1829.8,1829.7,4.5698]
[1746254594479,5.6493,1829.8,1829.7,4.5698]
[1746254596780,2.4415,1829.8,1829.7,4.5698]
[1746254597081,5.6493,1829.8,1829.7,4.5698]
[1746254599384,2.4415,1829.8,1829.7,4.5698]
[1746254599580,3.53424,1829.8,1829.7,4.5698]
[1746254599782,6.74204,1829.8,1829.7,4.5698]
[1746254601587,6.74204,1829.8,1829.7,3.477]
[1746254603586,10.3733052,1829.8,1829.7,3.477]
[1746254604088,10.3733052,1829.8,1829.7,4.5698]
[1746254606688,6.74204,1829.8,1829.7,4.5698]
[1746254608388,5.89264,1829.8,1829.7,4.5698]
[1746254608590,2.68484,1829.8,1829.7,4.5698]
[1746254612094,2.68484,1829.8,1829.7,6.2342]
[1746254616896,12.6590652,1829.9,1829.8,1.09274]
[1746254617095,6.8390652,1829.9,1829.8,24.51761655]
[1746254619603,3.2078,1829.9,1829.8,24.51761655]
[1746254619803,4.30048,1829.9,1829.8,24.51761655]
[1746254621901,4.30048,1829.9,1829.8,17.33942212]
[1746254622104,6.04398,1829.9,1829.8,24.51761655]
[1746254622803,4.9513,1829.9,1829.8,24.51761655]
[1746254623203,6.04398,1829.9,1829.8,24.51761655]
[1746254623808,2.83618,1829.9,1829.8,24.51761655]
[1746254624606,1.7435,1829.9,1829.8,24.51761655]
[1746254626004,7.9317352,1830.0,1829.9,1.09268]
[1746254626204,7.9317352,1830.0,1829.9,10.78217443]
[1746254626405,7.9317352,1830.0,1829.9,3.60398]
[1746254627304,9.5517352,1830.0,1829.9,3.60398]
[1746254628498,8.4590652,1830.0,1829.9,10.78217443]
[1746254628694,8.4590652,1830.0,1829.9,24.45285655]
[1746254629108,8.4590652,1830.0,1829.9,28.17085655]
[1746254629503,6.8390652,1830.0,1829.9,28.17085655]
[1746254631609,3.2078,1830.0,1829.9,28.17085655]
[1746254633209,6.05162,1830.0,1829.9,28.17085655]
[1746254634408,4.959,1830.0,1829.9,28.17085655]
[1746254635706,6.05162,1830.0,1829.9,28.17085655]
[1746254635907,2.84382,1830.0,1829.9,28.17085655]
[1746254637815,1.7512,1830.0,1829.9,28.17085655]
[1746254639413,2.84382,1830.0,1829.9,28.17085655]
[1746254639915,1.7512,1830.0,1829.9,28.17085655]
[1746254640117,2.84382,1830.0,1829.9,28.17085655]
[1746254640717,6.05162,1830.0,1829.9,28.17085655]
[1746254642119,2.84382,1830.0,1829.9,28.17085655]
[1746254642518,6.05162,1830.0,1829.9,28.17085655]
[1746254642815,4.959,1830.0,1829.9,28.17085655]
[1746254643919,6.05162,1830.0,1829.9,28.17085655]
[1746254646023,6.05162,1830.0,1829.9,20.99266212]
[1746254646221,4.959,1830.0,1829.9,28.17085655]
[1746254646723,6.05162,1830.0,1829.9,28.17085655]
[1746254649026,4.959,1830.0,1829.9,28.17085655]
[1746254651125,3.2078,1830.0,1829.9,28.17085655]
[1746254651826,3.6312652,1830.1,1830.0,1.09262]
[1746254652015,3.94180398,1830.1,1830.0,27.88019655]
[1746254652218,5.2152652,1830.1,1830.0,31.59819655]
[1746254652416,5.52580149,1830.1,1830.0,31.59819655]
[1746254652628,5.52580299,1830.1,1830.0,31.59819655]
[1746254652822,5.52580542,1830.1,1830.0,31.59819655]
[1746254653017,5.52580403,1830.1,1830.0,31.59819655]
[1746254653224,5.2152652,1830.1,1830.0,31.59819655]
[1746254653917,1.584,1830.1,1830.0,31.59819655]
[1746254654421,1.89453579,1830.1,1830.0,31.59819655]
[1746254654621,1.89447946,1830.1,1830.0,31.59819655]
[1746254654822,1.8944795,1830.1,1830.0,31.59819655]
[1746254655116,1.584,1830.1,1830.0,31.59819655]
[1746254658028,3.6312652,1830.2,1830.1,1.09256]
[1746254658231,3.94172479,1830.2,1830.1,23.52573655]
[1746254658431,3.94165387,1830.2,1830.1,16.34754212]
[1746254658632,3.94165407,1830.2,1830.1,16.34754212]
[1746254658824,3.6312652,1830.2,1830.1,23.52573655]
[1746254659026,3.94166146,1830.2,1830.1,23.52573655]
[1746254659226,6.7694658,1830.2,1830.1,23.52573655]
[1746254659425,6.76946652,1830.2,1830.1,23.52573655]
[1746254659735,6.4590652,1830.2,1830.1,1.09256]
[1746254660531,6.76947115,1830.2,1830.1,1.09256]
[1746254660731,6.76947113,1830.2,1830.1,1.09256]
[1746254660933,6.76947928,1830.2,1830.1,1.09256]
[1746254661129,6.4590652,1830.2,1830.1,1.09256]
[1746254661323,6.76946921,1830.2,1830.1,1.09256]
[1746254661526,6.76947553,1830.2,1830.1,1.09256]
[1746254662135,6.4590652,1830.2,1830.1,1.09256]
[1746254662334,6.7694828,1830.2,1830.1,1.09256]
[1746254662535,6.76948274,1830.2,1830.1,1.09256]
[1746254662727,6.76948276,1830.2,1830.1,1.09256]
[1746254662928,6.76948286,1830.2,1830.1,1.09256]
[1746254663128,6.4590652,1830.2,1830.1,1.09256]
[1746254663333,6.76948326,1830.2,1830.1,1.09256]
[1746254663533,6.76948114,1830.2,1830.1,1.09256]
[1746254663837,6.4590652,1830.2,1830.1,1.09256]
[1746254664131,1.09256,1830.1,1830.0,8.28261]
[1746254664332,6.84036,1830.1,1830.0,28.03887655]
[1746254664724,7.15075567,1830.1,1830.0,28.03887655]
[1746254664935,7.15075982,1830.1,1830.0,28.03887655]
[1746254665129,7.15075916,1830.1,1830.0,29.13149655]
[1746254665329,7.15075624,1830.1,1830.0,29.13149655]
[1746254665524,7.15076118,1830.1,1830.0,29.13149655]
[1746254665932,7.15075818,1830.1,1830.0,29.13149655]
[1746254666232,6.84036,1830.1,1830.0,29.13149655]
[1746254666438,7.15077087,1830.1,1830.0,29.13149655]
[1746254666632,6.84036,1830.1,1830.0,29.13149655]
[1746254667936,6.84036,1830.1,1830.0,29.99499655]
[1746254668636,10.4716252,1830.1,1830.0,29.99499655]
[1746254668836,10.4716252,1830.1,1830.0,31.66909655]
[1746254669438,9.6796252,1830.1,1830.0,31.66909655]
[1746254670531,8.5870652,1830.1,1830.0,31.66909655]
[1746254672338,4.9558,1830.1,1830.0,31.66909655]
[1746254672539,6.04836,1830.1,1830.0,29.99499655]
[1746254672739,6.04836,1830.1,1830.0,29.13149655]
[1746254677244,6.04836,1830.1,1830.0,21.95330212]
[1746254677433,9.6796252,1830.1,1830.0,29.13149655]
[1746254679544,9.6796252,1830.1,1830.0,21.95330212]
[1746254679747,9.6796252,1830.1,1830.0,29.13149655]
[1746254680146,6.4718252,1830.1,1830.0,29.13149655]
[1746254680345,9.6796252,1830.1,1830.0,29.13149655]
[1746254680945,10.37629783,1830.1,1830.0,29.13149655]
[1746254683048,10.37629783,1830.1,1830.0,21.95330212]
[1746254683250,10.37629783,1830.1,1830.0,29.13149655]
[1746254684148,7.16849783,1830.1,1830.0,29.13149655]
[1746254684349,10.37629783,1830.1,1830.0,29.13149655]
[1746254684747,9.6796252,1830.1,1830.0,29.13149655]
[1746254684947,9.6796252,1830.1,1830.0,29.92319655]
[1746254688453,9.6796252,1830.1,1830.0,22.74500212]
[1746254688652,9.6796252,1830.1,1830.0,31.51969655]
[1746254690353,9.6796252,1830.1,1830.0,17.84901443]
[1746254690554,9.6796252,1830.1,1830.0,31.51969655]
[1746254692658,8.89767042,1830.1,1830.0,31.51969655]
[1746254693857,9.99023042,1830.1,1830.0,31.51969655]
[1746254694058,8.89767042,1830.1,1830.0,31.51969655]
[1746254694362,8.89767618,1830.1,1830.0,31.51969655]
[1746254695258,8.5870652,1830.1,1830.0,31.51969655]
[1746254695460,8.89767439,1830.1,1830.0,31.51969655]
[1746254696658,8.89767027,1830.1,1830.0,31.51969655]
[1746254697061,8.89767108,1830.1,1830.0,31.51969655]
[1746254697557,5.26640588,1830.1,1830.0,31.51969655]
[1746254698555,4.9558,1830.1,1830.0,31.51969655]
[1746254698760,5.2664182,1830.1,1830.0,31.51969655]
[1746254699462,5.26642729,1830.1,1830.0,31.51969655]
[1746254699663,6.35898729,1830.1,1830.0,31.51969655]
[1746254700058,6.35898722,1830.1,1830.0,31.51969655]
[1746254700363,6.35898729,1830.1,1830.0,31.51969655]
[1746254700662,6.35898626,1830.1,1830.0,31.51969655]
[1746254701064,7.20518626,1830.1,1830.0,31.51969655]
[1746254701266,7.20519268,1830.1,1830.0,31.51969655]
[1746254701556,7.205182,1830.1,1830.0,31.51969655]
[1746254701762,10.83644684,1830.1,1830.0,31.51969655]
[1746254702462,10.83644708,1830.1,1830.0,31.51969655]
[1746254702661,10.83644649,1830.1,1830.0,31.51969655]
[1746254702861,10.83644708,1830.1,1830.0,28.03887655]
[1746254703265,10.83644532,1830.1,1830.0,24.32087655]
[1746254703661,10.83644532,1830.1,1830.0,25.41349655]
[1746254704063,10.83644532,1830.1,1830.0,4.56462]
[1746254704367,10.83638555,1830.1,1830.0,4.56462]
[1746254704872,10.5258252,1830.1,1830.0,4.56462]
[1746254705562,11.22249233,1830.1,1830.0,4.56462]
[1746254705769,11.53306234,1830.1,1830.0,4.56462]
[1746254706664,11.22249233,1830.1,1830.0,4.56462]
[1746254707471,11.53308518,1830.1,1830.0,4.56462]
[1746254707662,11.53308814,1830.1,1830.0,4.56462]
[1746254707863,11.53308836,1830.1,1830.0,5.41292]
[1746254708362,11.22249233,1830.1,1830.0,5.41292]
[1746254708869,11.22249233,1830.1,1830.0,4.56462]
[1746254709070,10.12993233,1830.1,1830.0,3.469]
[1746254709369,11.22249233,1830.1,1830.0,3.469]
[1746254710181,1.09268,1829.9,1829.8,1.9614]
[1746254710381,4.30048,1829.9,1829.8,26.27727655]
[1746254710580,3.2078,1829.9,1829.8,26.27727655]
[1746254710879,3.2078,1829.9,1829.8,27.92957655]
[1746254711072,3.2078,1829.9,1829.8,31.64757655]
[1746254711979,2.70012,1830.0,1829.9,1.09268]
[1746254712181,1.6075,1830.0,1829.9,28.19725655]
[1746254718685,8.7778752,1830.1,1829.9,28.19725655]
[1746254718686,7.9316752,1830.1,1830.0,1.09262]
[1746254718883,8.24209911,1830.1,1830.0,24.43779655]
[1746254719384,9.82909911,1830.1,1830.0,24.43779655]
[1746254719974,9.82910426,1830.1,1830.0,24.43779655]
[1746254720174,9.82910413,1830.1,1830.0,24.43779655]
[1746254720380,8.4260652,1830.1,1830.0,10.76711443]
[1746254720580,9.5186252,1830.1,1830.0,27.90479655]
[1746254720782,8.4260652,1830.1,1830.0,27.90479655]
[1746254721078,8.4260652,1830.1,1830.0,31.62279655]
[1746254723488,5.2182652,1830.1,1830.0,31.62279655]
[1746254723787,8.4260652,1830.1,1830.0,31.62279655]
[1746254725388,4.7948,1830.1,1830.0,31.62279655]
[1746254727489,4.7948,1830.1,1830.0,24.44460212]
[1746254727787,4.7948,1830.1,1830.0,31.62279655]
[1746254729285,3.2078,1830.1,1830.0,31.62279655]
[1746254730586,5.44689781,1830.3,1830.2,1.0925]
[1746254730794,2.63673141,1830.3,1830.2,25.14917655]
[1746254731091,2.63673141,1830.3,1830.2,31.36877655]
[1746254731591,2.63673141,1830.3,1830.2,31.79706056]
[1746254732286,2.63673141,1830.3,1830.2,31.36877655]
[1746254733494,2.63673141,1830.3,1830.2,32.19867655]
[1746254733794,1.5945,1830.4,1830.3,1.09244]
[1746254733991,1.5945,1830.4,1830.3,27.09381655]
[1746254734193,1.5945,1830.4,1830.3,30.81181655]
[1746254737795,0.8252,1830.6,1830.5,1.09232]
[1746254738089,2.4318,1830.6,1830.5,18.48100212]
[1746254738294,2.4318,1830.6,1830.5,4.81032]
[1746254742496,2.4318,1830.6,1830.5,18.48100212]
[1746254743901,16.19005619,1831.2,1830.5,34.44107655]
[1746254744201,1.6463,1831.0,1830.9,21.94090655]
[1746254744400,1.6463,1831.0,1830.9,18.22671212]
[1746254744793,1.6463,1831.0,1830.9,14.76271212]
[1746254744998,1.6463,1831.0,1830.9,25.40490655]
[1746254745198,1.6463,1831.0,1830.9,29.12290655]
[1746254745601,1.6463,1831.0,1830.9,31.55500655]
[1746254748401,1.6463,1831.0,1830.9,29.12290655]
[1746254748602,2.4799,1831.0,1830.9,29.12290655]
[1746254749495,2.4799,1831.0,1830.9,21.94471212]
[1746254749695,2.4799,1831.0,1830.9,29.12290655]
[1746254755508,1.6463,1831.0,1830.9,29.12290655]
[1746254755706,1.6463,1831.0,1830.9,30.71610655]
[1746254758612,3.58582,1831.0,1830.9,29.12290655]
[1746254759008,3.58582,1831.0,1830.9,21.94471212]
[1746254759212,3.58582,1831.0,1830.9,7.182]
[1746254759710,14.40582,1831.0,1830.9,7.181]
[1746254760107,14.40582,1831.0,1830.9,3.463]
[1746254761112,9.40582,1831.0,1830.9,3.463]
[1746254762815,1.09208,1830.9,1830.8,1.09211]
[1746254763004,1.5819,1830.9,1830.8,4.55511]
[1746254763203,1.5819,1830.9,1830.8,6.15781]
[1746254763408,1.5819,1830.9,1830.8,13.33600443]
[1746254763612,1.5819,1830.9,1830.8,27.82088655]
[1746254764117,1.5819,1830.9,1830.8,31.53888655]
[1746254764414,5.82,1831.0,1830.9,1.09208]
[1746254764610,5.82,1831.0,1830.9,23.65675655]
[1746254764805,5.82,1831.0,1830.9,9.98607443]
[1746254765008,3.54981,1831.1,1831.0,1.09202]
[1746254766315,3.54981,1831.1,1831.0,1.95422]
[1746254769118,3.54981,1831.1,1831.0,22.80309655]
[1746254770814,3.54981,1831.1,1831.0,8.27021443]
[1746254772022,1.09202,1831.0,1830.9,2.5756]
[1746254772223,2.3967,1831.0,1830.9,1.09208]
[1746254773825,2.3967,1831.0,1830.8,1.09212]
[1746254774120,0.8058,1831.0,1830.9,3.463]
[1746254774318,1.89782,1831.0,1830.9,3.463]
[1746254774824,1.89782,1831.0,1830.9,4.55508]
[1746254775014,1.89782,1831.0,1830.9,25.40395655]
[1746254775415,1.89782,1831.0,1830.9,26.20485655]
[1746254776424,0.8058,1831.0,1830.9,26.20485655]
[1746254776922,1.09198,1831.1,1831.0,1.09202]
[1746254777123,1.09198,1831.1,1831.0,24.42609655]
[1746254782627,1.09198,1831.1,1831.0,17.24790212]
[1746254782927,1.09198,1831.1,1831.0,24.42609655]
[1746254784926,1.09195,1831.2,1831.1,1.09193]
[1746254785119,1.09195,1831.2,1831.1,21.94080655]
[1746254785320,1.09195,1831.2,1831.1,8.27012443]
[1746254786728,5.14837,1831.3,1831.2,1.0919]
[1746254787024,5.14837,1831.3,1831.2,12.56249443]
[1746254787224,5.98957,1831.3,1831.2,5.3843]
[1746254788128,3.2078,1831.3,1831.2,5.3843]
[1746254788424,3.2078,1831.3,1831.2,26.23317655]
[1746254789228,3.2078,1831.3,1831.2,29.95117655]
[1746254789928,1.09178,1831.4,1831.3,1.09178]
[1746254790230,1.09178,1831.4,1831.3,24.43145655]
[1746254790427,9.06549619,1831.5,1831.4,1.09178]
[1746254790726,9.06549619,1831.5,1831.4,2.71358]
[1746254791629,9.06549619,1831.5,1831.4,1.09178]
[1746254794136,1.90324,1831.5,1831.4,1.09178]
[1746254794334,3.55834,1831.5,1831.4,1.09178]
[1746254794532,3.55834,1831.5,1831.4,1.94168]
[1746254795332,3.55834,1831.5,1831.4,0.8499]
[1746254795633,1.09178,1831.4,1831.3,3.67433]
[1746254795934,2.74688,1831.4,1831.3,18.19491212]
[1746254796132,2.74688,1831.4,1831.3,25.37310655]
[1746254796432,2.74688,1831.4,1831.3,29.09110655]
[1746254800533,2.74688,1831.4,1831.3,24.56687655]
[1746254800735,3.53808,1831.4,1831.3,3.718]
[1746254801136,1.09184,1831.3,1831.2,4.5549]
[1746254801338,2.84344,1831.3,1831.2,18.22558212]
[1746254801541,2.84344,1831.3,1831.2,25.40377655]
[1746254802136,2.84344,1831.3,1831.2,29.12177655]
[1746254803336,2.84344,1831.3,1831.2,28.02987655]
[1746254803534,2.84344,1831.3,1831.2,3.718]
[1746254803737,8.66344,1831.3,1831.2,3.718]
[1746254804235,1.09196,1831.1,1831.0,3.462]
[1746254804838,3.51436,1831.1,1831.0,3.462]
[1746254807537,3.51436,1831.1,1831.0,4.55402]
[1746254810139,3.51436,1831.1,1831.0,1.09202]
[1746254810341,3.51436,1831.1,1831.0,4.55502]
[1746254810529,2.67726,1831.1,1831.0,11.73321443]
[1746254810729,2.67726,1831.1,1831.0,12.60221443]
[1746254812642,2.67726,1831.1,1831.0,26.27289655]
[1746254812842,1.5853,1831.1,1831.0,26.27289655]
[1746254813140,1.09196,1831.1,1831.0,29.99089655]
[1746254815042,2.79616,1831.1,1831.0,29.99089655]
[1746254823243,2.79616,1831.1,1831.0,5.67902]
[1746254823547,1.0922,1830.7,1830.6,7.23588117]
[1746254823744,4.610628,1830.7,1830.6,7.23588117]
[1746254824141,7.173128,1830.7,1830.6,7.23588117]
[1746254824447,7.17294086,1830.7,1830.6,7.23588117]
[1746254824749,6.8625,1830.7,1830.6,7.23588117]
[1746254827641,7.17256275,1830.7,1830.6,7.23588117]
[1746254827846,6.8625,1830.7,1830.6,7.23588117]
[1746254828044,7.17254427,1830.7,1830.6,7.23588117]
[1746254828347,7.17244394,1830.7,1830.6,7.23588117]
[1746254828847,7.17244394,1830.7,1830.5,14.42674988]
[1746254828848,1.09226,1830.6,1830.5,3.463]
[1746254829035,2.73136,1830.6,1830.5,24.31187655]
[1746254829449,2.73136,1830.6,1830.5,3.463]
[1746254830647,3.04117712,1830.6,1830.5,3.463]
[1746254831347,1.09244,1830.3,1830.2,3.463]
[1746254831749,1.09244,1830.3,1830.2,24.31187655]
[1746254832341,2.72604,1830.3,1830.2,24.31187655]
[1746254833345,2.72604,1830.3,1830.2,3.463]
[1746254834354,5.93384,1830.3,1830.2,3.463]
[1746254838248,11.75384,1830.3,1830.2,3.463]
[1746254838449,1.09262,1830.0,1829.9,1.6955]
[1746254838752,1.09262,1830.0,1829.9,5.1685]
[1746254838953,1.09262,1830.0,1829.9,26.01737655]
[1746254839147,1.09262,1830.0,1829.8,1.6296]
[1746254839148,1.09268,1829.9,1829.8,5.1026]
[1746254839555,1.09268,1829.9,1829.8,25.95147655]
[1746254840253,1.09268,1829.9,1829.8,3.473]
[1746254840453,1.92758,1829.9,1829.8,3.473]
[1746254842052,1.0928,1829.7,1829.6,1.5985]
[1746254842251,1.0928,1829.7,1829.6,22.44737655]
[1746254842650,2.8404,1829.7,1829.6,22.44737655]
[1746254843558,2.8404,1829.7,1829.6,20.84887655]
[1746254843759,1.09286,1829.6,1829.5,0.8183]
[1746254844052,1.09286,1829.6,1829.1,5.88872]
[1746254844053,5.25258,1829.6,1829.1,5.88872]
[1746254844259,1.96742,1829.5,1829.4,20.84887655]
[1746254844458,6.89662,1829.5,1829.4,20.84887655]
[1746254844757,6.89662,1829.5,1829.4,7.17819443]
[1746254844953,5.8037,1829.5,1829.2,6.7811]
[1746254845159,1.09304,1829.3,1829.2,7.8742]
[1746254845857,1.09304,1829.3,1829.2,28.72307655]
[1746254846158,1.09304,1829.3,1829.2,32.44107655]
[1746254846458,1.09304,1829.3,1829.2,27.87497655]
[1746254847157,1.09304,1829.3,1829.2,24.15697655]
[1746254848554,1.09304,1829.3,1829.2,3.3081]
[1746254848757,1.0931,1829.2,1829.1,3.474]
[1746254848959,1.0931,1829.2,1829.1,10.65219443]
[1746254849854,1.09328,1828.9,1828.8,52.64426]
[1746254850052,1.09328,1828.9,1828.8,55.08236]
[1746254850250,1.09328,1828.9,1828.8,75.93123655]
[1746254850458,1.09328,1828.9,1828.8,14.18095443]
[1746254850856,1.09328,1828.9,1828.8,30.58556655]
[1746254852563,1.09328,1828.9,1828.8,29.49223655]
[1746254852759,1.09328,1828.9,1828.8,27.11156655]
[1746254854864,1.09328,1828.9,1828.8,26.01823655]
[1746254856164,1.09328,1828.9,1828.8,27.11156655]
[1746254856762,1.09328,1828.9,1828.8,26.01823655]
[1746254856963,1.09328,1828.9,1828.8,27.11156655]
[1746254863867,1.09328,1828.9,1828.8,4.37186]
[1746254863868,6.91328,1828.9,1828.8,4.37186]
[1746254864172,10.63128,1828.9,1828.8,2.73126]
[1746254864472,10.63128,1828.9,1828.8,23.58013655]
[1746254865069,10.63128,1828.9,1828.8,25.30403655]
[1746254865274,6.91328,1828.9,1828.8,25.30403655]
[1746254866872,6.91328,1828.9,1828.8,9.90945443]
[1746254867076,6.91328,1828.9,1828.8,2.73126]
[1746254867373,7.71638,1828.9,1828.8,2.73126]
[1746254869376,9.36468,1828.9,1828.8,2.73126]
[1746254870278,8.56158,1828.9,1828.8,2.73126]
[1746254871778,8.56158,1828.9,1828.8,9.90945443]
[1746254873077,8.87114981,1828.9,1828.8,9.90945443]
[1746254873278,8.87138228,1828.9,1828.8,9.90945443]
[1746254874981,8.87146673,1828.9,1828.8,9.90945443]
[1746254875877,8.87146673,1828.9,1828.8,23.58013655]
[1746254876078,8.87146673,1828.9,1828.8,9.90945443]
[1746254876379,9.71036673,1828.9,1828.8,9.90945443]
[1746254877080,9.71036673,1828.9,1828.8,2.73126]
[1746254878475,9.71058239,1828.9,1828.8,2.73126]
[1746254879183,1.09351,1828.5,1828.4,6.8477]
[1746254879382,1.40354192,1828.5,1828.4,20.51838212]
[1746254879578,1.40354445,1828.5,1828.4,27.69657655]
[1746254880077,1.09351,1828.5,1828.4,27.69657655]
[1746254881183,1.09351,1828.5,1828.4,28.79014655]
[1746254881584,1.09351,1828.5,1828.4,27.69657655]
[1746254882086,1.09351,1828.5,1828.4,28.79014655]
[1746254882481,1.09351,1828.5,1828.4,27.69657655]
[1746254886585,1.09351,1828.5,1828.4,28.79014655]
[1746254888285,1.09351,1828.5,1828.4,27.69657655]
[1746254888487,1.09351,1828.5,1828.4,28.79014655]
[1746254889588,1.09351,1828.5,1828.4,27.69657655]
[1746254891277,1.09351,1828.5,1828.4,25.94647655]
[1746254891482,1.09351,1828.5,1828.4,27.68037655]
[1746254895890,2.74281,1828.5,1828.4,27.68037655]
[1746254896193,3.05279715,1828.5,1828.4,25.94647655]
[1746254896392,3.90409715,1828.5,1828.4,25.94647655]
[1746254896694,3.59411,1828.5,1828.4,25.94647655]
[1746254896990,3.59411,1828.5,1828.4,27.52557655]
[1746254897495,2.74281,1828.5,1828.4,27.52557655]
[1746254904299,3.05300863,1828.5,1828.4,27.52557655]
[1746254904698,3.0530125,1828.5,1828.4,27.52557655]
[1746254904897,2.74281,1828.5,1828.4,27.52557655]
[1746254906203,3.05314776,1828.5,1828.4,27.52557655]